fUSD/lending_fUSD_20260407
["ID","MTS","AMOUNT","RATE_DAILY","PERIOD"]
[419994760,1775591750207,-1564.42,0.00046504,30]
[419994761,1775591750238,-151.0,0.00046504,30]
[419994762,1775591750269,-637.89,0.00046504,30]
[419994763,1775591750300,-391.97,0.00046504,30]
[419994764,1775591750331,-151.0,0.00046504,30]
[419994765,1775591750361,-477.53,0.00046504,30]
[419994766,1775591750392,-183.26,0.00046504,30]
[419994767,1775591750423,-378.68,0.00046504,30]
[419994768,1775591750455,-569.96,0.00046504,30]
[419994769,1775591750487,-199.95,0.00046504,30]
[419994770,1775591750517,-234.16,0.00046504,30]
[419994771,1775591750549,-151.0,0.00046504,30]
[419994772,1775591750579,-218.89055728,0.00046504,120]
[419994773,1775591750609,-477.53,0.00046504,30]
[419994774,1775591750640,-151.0,0.00046504,30]
[419994775,1775591750670,-637.89,0.00046504,30]
[419994776,1775591750700,-1564.57,0.00046504,30]
[419994777,1775591750730,-569.96,0.00046504,30]
[419994778,1775591750762,-500.0,0.00046504,30]
[419994779,1775591750793,-500.0,0.00046504,30]
[419994780,1775591750823,-739.0,0.00046504,30]
[419994781,1775591750853,-10000.0,0.00046504,120]
[419994782,1775591750883,-520.0,0.00046504,120]
[419994783,1775591750913,-165.61108743,0.00046504,120]
[419994784,1775591751264,-200.0,0.00046504,120]
[419994785,1775591751297,-6888.0,0.00046504,120]
[419994786,1775591751328,-500.0,0.00046504,120]
[419994787,1775591751361,-500.0,0.00046504,120]
[419994788,1775591751394,-1030.0,0.00046504,120]
[419994789,1775591751425,-10370.0,0.00046504,120]
[419994790,1775591751458,-500.0,0.00046504,120]
[419994791,1775591751489,-200.0,0.00046504,120]
[419994792,1775591751521,-539.24,0.00046504,120]
[419994793,1775591751552,-200.0,0.00046504,120]
[419994794,1775591751583,-518.5,0.00046504,120]
[419994795,1775591751614,-500.0,0.00046504,120]
[419994796,1775591751646,-1068.11,0.00046504,120]
[419994797,1775591751677,-151.0,0.00046504,120]
[419994798,1775591751710,-7142.856,0.00046504,120]
[419994799,1775591751743,-500.0,0.00046504,120]
[419994800,1775591751774,-200.0,0.00046504,120]
[419994801,1775591751804,-559.19188,0.00046504,120]
[419994802,1775591751836,-200.0,0.00046504,120]
[419994803,1775591751866,-537.6845,0.00046504,120]
[419994804,1775591751897,-500.0,0.00046504,120]
[419994805,1775591751929,-1107.63007,0.00046504,120]
[419994806,1775591751961,-156.587,0.00046504,120]
[419994807,1775591751993,-7407.141672,0.00046504,120]
[419994808,1775591752026,-500.0,0.00046504,120]
[419994809,1775591752058,-200.0,0.00046504,120]
[419994810,1775591752091,-579.88197956,0.00046504,120]
[419994811,1775591752122,-200.0,0.00046504,120]
[419994812,1775591752153,-537.6845,0.00046504,120]
[419994813,1775591752186,-500.0,0.00046504,120]
[419994814,1775591752217,-1148.61238259,0.00046504,120]
[419994815,1775591752248,-162.380719,0.00046504,120]
[419994816,1775591752281,-7681.20591386,0.00046504,120]
[419994817,1775591752314,-500.0,0.00046504,120]
[419994818,1775591752346,-200.0,0.00046504,120]
[419994819,1775591752377,-579.88197956,0.00046504,120]
[419994820,1775591752409,-200.0,0.00046504,120]
[419994821,1775591752442,-500.0,0.00046504,120]
[419994822,1775591752474,-168.3888056,0.00046504,120]
[419994823,1775591752506,-7681.20591386,0.00046504,120]
[419994824,1775591752540,-1191.11104075,0.00046504,120]
[419994825,1775591752572,-500.0,0.00046504,120]
[419994826,1775591752604,-200.0,0.00046504,120]
[419994827,1775591752635,-200.0,0.00046504,120]
[419994828,1775591752666,-500.0,0.00046504,120]
[419994829,1775591752696,-168.3888056,0.00046504,120]
[419994830,1775591752728,-1235.18214925,0.00046504,120]
[419994831,1775591752759,-500.0,0.00046504,120]
[419994832,1775591752791,-200.0,0.00046504,120]
[419994833,1775591752822,-200.0,0.00046504,120]
[419994834,1775591752854,-500.0,0.00046504,120]
[419994835,1775591752885,-1235.18214925,0.00046504,120]
[419994836,1775591752916,-500.0,0.00046504,120]
[419994837,1775591752949,-500.0,0.00046504,120]
[419994838,1775591752981,-200.0,0.00046504,120]
[419994839,1775591753014,-569.96,0.00046504,30]
[419994840,1775591753046,-477.53,0.00046504,30]
[419994841,1775591753077,-637.89,0.00046504,30]
[419994842,1775591753109,-200.0,0.00046504,120]
[419994843,1775591753141,-151.0,0.00046504,120]
[419994844,1775591753171,-151.0,0.00046504,120]
[419994845,1775591753204,-1564.57,0.00046504,30]
[419994846,1775591753234,-500.0,0.00046504,120]
[419994847,1775591753264,-200.0,0.00046504,120]
[419994848,1775591753295,-151.0,0.00046504,120]
[419994849,1775591753324,-567.75,0.00046504,30]
[419994850,1775591753355,-151.0,0.00046504,120]
[419994851,1775591753383,-200.0,0.00046504,120]
[419994852,1775591753411,-151.0,0.00046504,120]
[419994853,1775591753442,-500.0,0.00046504,120]
[419994854,1775591753473,-151.0,0.00046504,120]
[419994855,1775591753505,-151.0,0.00046504,120]
[419994856,1775591753533,-151.0,0.00046504,120]
[419994857,1775591753569,-151.0,0.00046504,120]
[419994858,1775591753601,-200.0,0.00046504,120]
[419994859,1775591753632,-156.587,0.00046504,120]
[419994860,1775591753665,-200.0,0.00046504,120]
[419994861,1775591753695,-151.0,0.00046504,120]
[419994862,1775591753725,-151.0,0.00046504,120]
[419994863,1775591753756,-151.0,0.00046504,120]
[419994864,1775591753785,-220.0,0.00046504,120]
[419994865,1775591753815,-151.0,0.00046504,120]
[419994866,1775591753845,-151.0,0.00046504,120]
[419994867,1775591753875,-200.0,0.00046504,120]
[419994868,1775591753905,-162.380719,0.00046504,120]
[419994869,1775591753936,-200.0,0.00046504,120]
[419994870,1775591753965,-151.0,0.00046504,120]
[419994871,1775591753994,-151.0,0.00046504,120]
[419994872,1775591754025,-151.0,0.00046504,120]
[419994873,1775591754055,-220.0,0.00046504,120]
[419994874,1775591754085,-151.0,0.00046504,120]
[419994875,1775591754115,-151.0,0.00046504,120]
[419994876,1775591754146,-200.0,0.00046504,120]
[419994877,1775591754177,-240.820754,0.00046504,120]
[419994878,1775591754208,-168.3888056,0.00046504,120]
[419994879,1775591754238,-151.0,0.00046504,120]
[419994880,1775591754270,-151.0,0.00046504,120]
[419994881,1775591754302,-220.0,0.00046504,120]
[419994882,1775591754334,-151.0,0.00046504,120]
[419994883,1775591754364,-151.0,0.00046504,120]
[419994884,1775591754394,-200.0,0.00046504,120]
[419994885,1775591754428,-168.3888056,0.00046504,120]
[419994886,1775591754461,-160.0,0.00046504,120]
[419994887,1775591754493,-151.0,0.00046504,120]
[419994888,1775591754524,-220.0,0.00046504,120]
[419994889,1775591754555,-151.0,0.00046504,120]
[419994890,1775591754584,-151.0,0.00046504,120]
[419994891,1775591754613,-200.0,0.00046504,120]
[419994892,1775591754646,-160.0,0.00046504,120]
[419994893,1775591754678,-500.0,0.00046504,120]
[419994894,1775591754709,-151.0,0.00046504,120]
[419994895,1775591754739,-200.0,0.00046504,120]
[419994896,1775591754768,-160.0,0.00046504,120]
[419994897,1775591754798,-151.0,0.00046504,120]
[419994898,1775591754827,-200.0,0.00046504,120]
[419994899,1775591754856,-151.0,0.00046504,120]
[419994900,1775591755241,-200.0,0.00046504,120]
[419994901,1775591755271,-160.0,0.00046504,120]
[419994902,1775591755302,-10000.0,0.00046504,120]
[419994903,1775591755332,-151.0,0.00046504,120]
[419994904,1775591755361,-151.0,0.00046504,120]
[419994905,1775591755391,-160.0,0.00046504,120]
[419994906,1775591755424,-151.0,0.00046504,120]
[419994907,1775591755455,-151.0,0.00046504,120]
[419994908,1775591755486,-151.0,0.00046504,120]
[419994909,1775591755515,-151.0,0.00046504,120]
[419994910,1775591755542,-151.0,0.00046504,120]
[419994911,1775591755571,-151.0,0.00046504,120]
[419994912,1775591755599,-151.0,0.00046504,120]
[419994913,1775591755627,-151.0,0.00046504,120]
[419994914,1775591755656,-151.0,0.00046504,120]
[419994915,1775591755688,-151.0,0.00046504,120]
[419994916,1775591755718,-151.0,0.00046504,120]
[419994917,1775591755747,-151.0,0.00046504,120]
[419994918,1775591755775,-151.0,0.00046504,120]
[419994919,1775591755804,-151.0,0.00046504,120]
[419994920,1775591755832,-151.0,0.00046504,120]
[419994921,1775591755860,-151.0,0.00046504,120]
[419994922,1775591755891,-151.0,0.00046504,120]
[419994923,1775591755920,-151.0,0.00046504,120]
[419994924,1775591755950,-151.0,0.00046504,120]
[419994925,1775591755981,-151.0,0.00046504,120]
[419994926,1775591756010,-151.0,0.00046504,120]
[419994927,1775591756038,-151.0,0.00046504,120]
[419994928,1775591756070,-151.0,0.00046504,120]
[419994929,1775591756098,-151.0,0.00046504,120]
[419994930,1775591756126,-151.0,0.00046504,120]
[419994931,1775591756155,-151.0,0.00046504,120]
[419994932,1775591756186,-187.908816,0.00046504,120]
[419994933,1775591756215,-1000.0,0.00046504,120]
[419994934,1775591756245,-1000.0,0.00046504,120]
[419994935,1775591756276,-500.0,0.00046504,120]
[419994936,1775591756305,-1000.0,0.00046504,120]
[419994937,1775591756334,-3247.14647026,0.00046504,120]
[419994938,1775591756362,-1000.0,0.00046504,120]
[419994939,1775591756390,-500.0,0.00046504,120]
[419994940,1775591756419,-2486.0,0.00046504,120]
[419994941,1775591756448,-500.0,0.00046504,120]
[419994942,1775591756477,-2049.27426848,0.00046504,120]
[419994943,1775591756506,-500.0,0.00046504,120]
[419994944,1775591756535,-1000.0,0.00046504,120]
[419994945,1775591756564,-2486.0,0.00046504,120]
[419994946,1775591756592,-500.0,0.00046504,120]
[419994947,1775591756622,-500.0,0.00046504,120]
[419994948,1775591756652,-2486.0,0.00046504,120]
[419994949,1775591756681,-3000.0,0.00046504,120]
[419994950,1775591756709,-518.5,0.00046504,120]
[419994951,1775591756739,-500.0,0.00046504,120]
[419994952,1775591756768,-2486.0,0.00046504,120]
[419994953,1775591756799,-3000.0,0.00046504,120]
[419994954,1775591756828,-537.6845,0.00046504,120]
[419994955,1775591756857,-2486.0,0.00046504,120]
[419994956,1775591756887,-3266.11237354,0.00046504,120]
[419994957,1775591756916,-151.0,0.00046504,30]
[419994958,1775591756947,-3000.0,0.00046504,120]
[419994959,1775591756977,-1564.57,0.00046504,30]
[419994960,1775591757005,-151.0,0.00046504,30]
[419994961,1775591757033,-183.26,0.00046504,30]
[419994962,1775591757061,-637.89,0.00046504,30]
[419994963,1775591757091,-567.75,0.00046504,30]
[419994964,1775591757120,-477.53,0.00046504,30]
[419994965,1775591757149,-557.5788265,0.00046504,120]
[419994966,1775591757177,-151.0,0.00046504,30]
[419994967,1775591757207,-3000.0,0.00046504,120]
[419994968,1775591757238,-2486.0,0.00046504,120]
[419994969,1775591757268,-557.5788265,0.00046504,120]
[419994970,1775591757298,-620.0,0.00046504,120]
[419994971,1775591757329,-3000.0,0.00046504,120]
[419994972,1775591757359,-2486.0,0.00046504,120]
[419994973,1775591757389,-642.94,0.00046504,120]
[419994974,1775591757418,-500.0,0.00046504,30]
[419994975,1775591757449,-2486.0,0.00046504,120]
[419994976,1775591757480,-1000.0,0.00046504,30]
[419994977,1775591757508,-666.72878,0.00046504,120]
[419994978,1775591757537,-2486.0,0.00046504,120]
[419994979,1775591757565,-1037.0,0.00046504,30]
[419994980,1775591757593,-151.0,0.00046504,120]
[419994981,1775591757624,-691.39774486,0.00046504,120]
[419994982,1775591757654,-2486.0,0.00046504,120]
[419994983,1775591757683,-1075.369,0.00046504,30]
[419994984,1775591757711,-156.587,0.00046504,120]
[419994985,1775591757740,-251.0,0.00046504,120]
[419994986,1775591757768,-691.39774486,0.00046504,120]
[419994987,1775591757798,-2486.0,0.00046504,120]
[419994988,1775591757826,-1115.157653,0.00046504,30]
[419994989,1775591757855,-162.380719,0.00046504,120]
[419994990,1775591757883,-260.287,0.00046504,120]
[419994991,1775591757910,-2486.0,0.00046504,120]
[419994992,1775591757939,-1115.157653,0.00046504,30]
[419994993,1775591757968,-168.3888056,0.00046504,120]
[419994994,1775591757999,-260.287,0.00046504,120]
[419994995,1775591758029,-168.3888056,0.00046504,120]
[419994996,1775591758059,-1500.0,0.00046504,120]
[419994997,1775591758089,-1500.0,0.00046504,120]
[419994998,1775591758118,-210.84247847,0.00046504,30]
[419994999,1775591758150,-1500.0,0.00046504,120]
[419995000,1775591758180,-1500.0,0.00046504,120]
[419995001,1775591758209,-1500.0,0.00046504,120]
[419995002,1775591758239,-151.0,0.00046504,120]
[419995003,1775591758268,-1500.0,0.00046504,120]
[419995004,1775591758298,-151.0,0.00046504,120]
[419995005,1775591758328,-1500.0,0.00046504,120]
[419995006,1775591758358,-1500.0,0.00046504,120]
[419995007,1775591758391,-1500.0,0.00046504,120]
[419995008,1775591758424,-1500.0,0.00046504,120]
[419995009,1775591758456,-1500.0,0.00046504,120]
[419995010,1775591758486,-151.0,0.00046504,120]
[419995011,1775591758517,-170.0,0.00046504,120]
[419995012,1775591758549,-1500.0,0.00046504,120]
[419995013,1775591758580,-151.0,0.00046504,120]
[419995014,1775591758611,-170.0,0.00046504,120]
[419995015,1775591758641,-1500.0,0.00046504,120]
[419995016,1775591758672,-151.0,0.00046504,120]
[419995017,1775591758703,-170.0,0.00046504,120]
[419995018,1775591759118,-477.53,0.00046504,30]
[419995019,1775591759150,-1500.0,0.00046504,120]
[419995020,1775591759181,-183.26,0.00046504,30]
[419995021,1775591759213,-567.75,0.00046504,30]
[419995022,1775591759244,-391.97,0.00046504,30]
[419995023,1775591759274,-1564.42,0.00046504,30]
[419995024,1775591759303,-151.0,0.00046504,120]
[419995025,1775591759332,-151.0,0.00046504,30]
[419995026,1775591759363,-170.0,0.00046504,120]
[419995027,1775591759395,-151.0,0.00046504,30]
[419995028,1775591759425,-569.96,0.00046504,30]
[419995029,1775591759455,-1500.0,0.00046504,120]
[419995030,1775591759484,-151.0,0.00046504,120]
[419995031,1775591759513,-637.9,0.00046504,30]
[419995032,1775591759542,-301.0,0.00046504,30]
[419995033,1775591759570,-12000.0,0.00046504,30]
[419995034,1775591759599,-12444.0,0.00046504,30]
[419995035,1775591759629,-12904.428,0.00046504,30]
[419995036,1775591759660,-13381.891836,0.00046504,30]
[419995037,1775591759699,-13877.02183393,0.00046504,30]
[419995038,1775591761578,14390.47164179,0.00046469,30]
[419995039,1775591761689,18273.75102142,0.00046469,30]
[419995040,1775591761862,14922.91909253,0.00046469,30]
[419995041,1775591762016,15475.06709896,0.00046469,30]
[419995042,1775591762101,16047.64458162,0.00046469,30]
[419995043,1775591762196,16641.40743114,0.00046469,30]
[419995044,1775591762709,294.57697518,0.00046469,30]
[419995045,1775591762816,182.08479694,0.00046469,30]
[419995046,1775591827929,8299.99,0.00011472,2]
[419995047,1775591834959,-1200.0,0.0001153,2]
[419995048,1775591834990,-300.0,0.00011572,2]
[419995049,1775591835020,-300.0,0.00011572,2]
[419995050,1775591835053,-300.0,0.00011572,2]
[419995051,1775591835084,-2529.31625511,0.00011573,2]
[419995052,1775591837833,-741.37748978,0.00011573,2]
[419995053,1775591837862,-413.25921818,0.00011573,2]
[419995054,1775591837893,-300.0,0.00011588,2]
[419995055,1775591837924,-300.0,0.00011588,2]
[419995056,1775591837956,-150.0,0.00011588,2]
[419995057,1775591837988,-1030.70052356,0.00011589,2]
[419995058,1775591840994,-4129.33553696,0.00011589,2]
[419995059,1775591841026,-249.61,0.00011589,2]
[419995060,1775591841057,-500.0,0.00011589,2]
[419995062,1775591847660,-500.0,0.00011589,2]
[419995063,1775591847691,-500.0,0.00011589,2]
[419995064,1775591847720,-571.80563294,0.00011589,2]
[419995065,1775591847755,-500.0,0.00011589,2]
[419995066,1775591847789,-500.0,0.00011589,2]
[419995067,1775591847824,-500.0,0.00011589,2]
[419995068,1775591847857,-500.0,0.00011589,2]
[419995069,1775591847890,-500.0,0.00011589,2]
[419995070,1775591847925,-500.0,0.00011589,2]
[419995071,1775591847960,-356.39873412,0.00011589,2]
[419995073,1775591877914,9175.92150407,0.0001149,2]
[419995074,1775591930974,1476.79680868,0.0001149,2]
[419995097,1775592026405,500.0,0.00011409,2]
[419995098,1775592026572,500.0,0.00011409,2]
[419995099,1775592026798,524.8115188,0.00011409,2]
[419995100,1775592027301,1538.0,0.00011409,2]
[419995101,1775592027483,151.16271487,0.00011409,2]
[419995102,1775592027524,1538.0,0.00011409,2]
[419995103,1775592027678,1538.0,0.00011409,2]
[419995104,1775592029416,1538.0,0.00011409,2]
[419995105,1775592029552,695.23895765,0.00011409,2]
[419995106,1775592029576,842.76104235,0.00011409,2]
[419995107,1775592029637,1538.0,0.00011409,2]
[419995108,1775592029691,500.0,0.00011409,2]
[419995109,1775592029742,1538.0,0.00011409,2]
[419995110,1775592029775,500.0,0.00011409,2]
[419995111,1775592029828,500.0,0.00011409,2]
[419995112,1775592029884,500.0,0.00011409,2]
[419995113,1775592029919,1538.0,0.00011409,2]
[419995114,1775592029972,1538.0,0.00011409,2]
[419995115,1775592030255,500.0,0.00011409,2]
[419995116,1775592030297,505.24895765,0.00011409,2]
[419995117,1775592030321,1032.75104235,0.00011409,2]
[419995118,1775592030360,278.57606632,0.00011409,2]
[419995119,1775592030397,1538.0,0.00011409,2]
[419995120,1775592030444,1538.0,0.00011409,2]
[419995121,1775592030491,1538.0,0.00011409,2]
[419995122,1775592030533,1538.0,0.00011409,2]
[419995123,1775592030571,1538.0,0.00011409,2]
[419995124,1775592030629,998.68289133,0.00011409,2]
[419995125,1775592030654,539.31710867,0.00011409,2]
[419995126,1775592030697,1538.0,0.00011409,2]
[419995127,1775592030835,1538.0,0.00011409,2]
[419995128,1775592031914,1538.0,0.00011409,2]
[419995130,1775592032665,1538.0,0.00011409,2]
[419995131,1775592034030,1538.0,0.00011409,2]
[419995132,1775592035738,1538.0,0.00011409,2]
[419995133,1775592037710,232.69289133,0.00011409,2]
[419995134,1775592037735,1305.30710867,0.00011409,2]
[419995135,1775592041453,1553.30229004,0.00011409,2]
[419995136,1775592042713,3535.51962221,0.000115,2]
[419995138,1775592075736,150.0,0.00011409,2]
[419995139,1775592075779,500.0,0.00011409,2]
[419995140,1775592076531,153.24085071,0.00011409,2]
[419995141,1775592076578,500.0,0.00011409,2]
[419995142,1775592076613,266.52915409,0.00011409,2]
[419995143,1775592076691,151.0,0.000115,2]
[419995144,1775592076839,193.16208464,0.000115,2]
[419995145,1775592078600,151.0,0.000115,2]
[419995146,1775592078734,293.25438428,0.000115,2]
[419995147,1775592080091,245.64926774,0.000115,2]
[419995148,1775592080122,234.60350743,0.000115,2]
[419995149,1775592081725,187.68280594,0.000115,2]
[419995150,1775592083312,151.0,0.000115,2]
[419995151,1775592089167,3578.743,0.00011358,2]
[419995152,1775592089216,161.208,0.00011358,2]
[419995153,1775592092045,6260.059,0.00011238,2]
[419995154,1775592092071,10000.01,0.00011238,2]
[419995155,1775592092097,10000.01,0.00011238,2]
[419995156,1775592092121,10000.01,0.00011238,2]
[419995157,1775592092144,10000.01,0.00011238,2]
[419995160,1775592228557,-150.0,0.00010959,2]
[419995161,1775592228586,-700.87,0.00011016,2]
[419995162,1775592228748,-1701.74,0.00011016,2]
[419995163,1775592232048,-3403.48,0.00011016,2]
[419995164,1775592232083,-3193.05,0.00011016,2]
[419995165,1775592232112,-300.0,0.00011237,2]
[419995166,1775592232139,-300.0,0.00011237,2]
[419995167,1775592246568,-300.0,0.00011237,2]
[419995168,1775592277190,-8127.14611003,0.00011238,2]
[419995170,1775592285189,-601.08511003,0.00011238,2]
[419995171,1775592285292,-8797.83977994,0.00011238,2]
[419995174,1775592429727,-200.0,0.000112,2]
[419995175,1775592429757,-166.66,0.00011252,2]
[419995176,1775592429788,-250.0,0.00011291,2]
[419995177,1775592429816,-150.0,0.00011291,2]
[419995178,1775592429846,-183.02269796,0.00011308,2]
[419995179,1775592429875,-500.0,0.00011315,2]
[419995180,1775592429905,-500.0,0.00011315,2]
[419995181,1775592429934,-500.0,0.00011315,2]
[419995182,1775592429962,-500.0,0.00011315,2]
[419995183,1775592429994,-500.0,0.00011315,2]
[419995184,1775592430025,-500.0,0.00011315,2]
[419995185,1775592430473,-500.0,0.00011315,2]
[419995186,1775592430503,-500.0,0.00011315,2]
[419995187,1775592430669,-220.30165745,0.00011315,2]
[419995188,1775592430699,-150.0,0.00011315,2]
[419995189,1775592430729,-208.28084586,0.00011315,2]
[419995190,1775592430760,-500.0,0.00011315,2]
[419995191,1775592430790,-500.0,0.00011315,2]
[419995192,1775592430819,-150.0,0.00011315,2]
[419995193,1775592430850,-500.0,0.00011315,2]
[419995194,1775592430878,-150.0,0.00011315,2]
[419995195,1775592430907,-500.0,0.00011315,2]
[419995196,1775592430936,-150.0,0.00011315,2]
[419995197,1775592430966,-500.0,0.00011315,2]
[419995198,1775592430995,-181.70252141,0.00011315,2]
[419995199,1775592431026,-500.0,0.00011315,2]
[419995200,1775592431054,-500.0,0.00011315,2]
[419995201,1775592431148,-594.20670319,0.00011315,2]
[419995202,1775592431178,-500.0,0.00011315,2]
[419995203,1775592431208,-500.0,0.00011315,2]
[419995204,1775592431238,-500.0,0.00011315,2]
[419995205,1775592431269,-500.0,0.00011315,2]
[419995206,1775592431299,-500.0,0.00011315,2]
[419995207,1775592431329,-500.0,0.00011315,2]
[419995208,1775592431357,-500.0,0.00011315,2]
[419995209,1775592431385,-337.97015847,0.00011315,2]
[419995210,1775592431415,-500.0,0.00011315,2]
[419995211,1775592431509,-500.0,0.00011315,2]
[419995212,1775592431538,-500.0,0.00011315,2]
[419995213,1775592431567,-500.0,0.00011315,2]
[419995214,1775592431599,-500.0,0.00011315,2]
[419995215,1775592431628,-397.72162059,0.00011315,2]
[419995216,1775592431659,-500.0,0.00011315,2]
[419995217,1775592431690,-500.0,0.00011315,2]
[419995218,1775592431720,-500.0,0.00011315,2]
[419995219,1775592431752,-500.0,0.00011315,2]
[419995220,1775592431786,-500.0,0.00011315,2]
[419995221,1775592431924,-500.0,0.00011315,2]
[419995222,1775592431955,-338.64365037,0.00011315,2]
[419995223,1775592431986,-500.0,0.00011315,2]
[419995224,1775592432018,-500.0,0.00011315,2]
[419995225,1775592432049,-500.0,0.00011315,2]
[419995226,1775592432079,-500.0,0.00011315,2]
[419995227,1775592432111,-500.0,0.00011315,2]
[419995228,1775592432140,-500.0,0.00011315,2]
[419995229,1775592432169,-500.0,0.00011315,2]
[419995230,1775592432198,-500.0,0.00011315,2]
[419995231,1775592432266,-500.0,0.00011315,2]
[419995232,1775592432297,-500.0,0.00011315,2]
[419995233,1775592432328,-385.20384257,0.00011315,2]
[419995234,1775592432359,-500.0,0.00011315,2]
[419995235,1775592432390,-500.0,0.00011315,2]
[419995236,1775592432420,-592.74325814,0.00011315,2]
[419995237,1775592432451,-150.0,0.00011315,2]
[419995238,1775592432481,-150.7184852,0.00011315,2]
[419995239,1775592432515,-195.0,0.0001133,2]
[419995240,1775592432546,-292.0,0.00011407,2]
[419995241,1775592432576,-1200.0,0.00011407,2]
[419995242,1775592432673,-150.0,0.00011407,2]
[419995243,1775592432704,-150.0,0.00011407,2]
[419995244,1775592432734,-150.0,0.00011408,2]
[419995245,1775592432767,-300.0,0.00011408,2]
[419995246,1775592432796,-300.0,0.00011408,2]
[419995247,1775592432836,-500.0,0.00011408,2]
[419995248,1775592432872,-500.0,0.00011408,2]
[419995249,1775592432907,-500.0,0.00011408,2]
[419995250,1775592432944,-500.0,0.00011408,2]
[419995251,1775592432980,-500.0,0.00011408,2]
[419995252,1775592433017,-500.0,0.00011408,2]
[419995253,1775592433055,-500.0,0.00011408,2]
[419995254,1775592433093,-400.01,0.00011408,2]
[419995255,1775592433589,-99.99,0.00011408,2]
[419995256,1775592433627,-500.0,0.00011408,2]
[419995257,1775592433664,-500.0,0.00011408,2]
[419995258,1775592433702,-500.0,0.00011408,2]
[419995259,1775592433740,-500.0,0.00011408,2]
[419995260,1775592433777,-500.0,0.00011408,2]
[419995261,1775592433814,-500.0,0.00011408,2]
[419995262,1775592433850,-500.0,0.00011408,2]
[419995263,1775592433887,-500.0,0.00011408,2]
[419995264,1775592433924,-500.0,0.00011408,2]
[419995265,1775592433963,-300.03,0.00011408,2]
[419995266,1775592434152,-199.97,0.00011408,2]
[419995267,1775592434187,-500.0,0.00011408,2]
[419995268,1775592434223,-500.0,0.00011408,2]
[419995269,1775592434262,-500.0,0.00011408,2]
[419995270,1775592434299,-500.0,0.00011408,2]
[419995271,1775592434337,-500.0,0.00011408,2]
[419995272,1775592434375,-500.0,0.00011408,2]
[419995273,1775592434413,-500.0,0.00011408,2]
[419995274,1775592434449,-500.0,0.00011408,2]
[419995275,1775592434485,-500.0,0.00011408,2]
[419995276,1775592434523,-100.07,0.00011408,2]
[419995277,1775592438335,-399.93,0.00011408,2]
[419995278,1775592438371,-426.25767959,0.00011408,2]
[419995279,1775592438408,-500.0,0.00011408,2]
[419995280,1775592438444,-500.0,0.00011408,2]
[419995281,1775592438482,-500.0,0.00011408,2]
[419995282,1775592438520,-500.0,0.00011408,2]
[419995283,1775592438550,-501.86070028,0.00011408,2]
[419995284,1775592438586,-500.0,0.00011408,2]
[419995285,1775592438623,-500.0,0.00011408,2]
[419995286,1775592438659,-500.0,0.00011408,2]
[419995287,1775592438795,-500.0,0.00011408,2]
[419995288,1775592438832,-500.0,0.00011408,2]
[419995289,1775592438867,-500.0,0.00011408,2]
[419995290,1775592438896,-576.75521372,0.00011408,2]